[Event "Titled Tuesday Blitz March 21 Late 2023"]
[White "Barbosa, Evandro Amorim"]
[Black "Zierk, Steven"]
[WhiteFideId "2115824"]
[BlackFideId "2034255"]
[WhiteElo "2439"]
[BlackElo "2494"]
[Result "0-1"]
[Round "02"]
[TimeControl "180+2"]
[Date "2023.03.21"]
[WhiteClock "0:00:27"]
[BlackClock "0:01:09"]

1. e4 {[%clk 0:03:00]}  e6 {[%clk 0:03:00]} 2. d3 {[%clk 0:03:00]}  d5 {[%clk 0:03:01]} 3. Qe2 {[%clk 0:02:59]}  dxe4 {[%clk 0:03:00]} 4. dxe4 {[%clk 0:02:59]}  e5 {[%clk 0:03:01]} 5. Nf3 {[%clk 0:02:58]}  Nc6 {[%clk 0:03:00]} 6. c3 {[%clk 0:02:59]}  Nf6 {[%clk 0:02:57]} 7. Qc2 {[%clk 0:02:59]}  Bc5 {[%clk 0:02:53]} 8. Bb5 {[%clk 0:02:59]}  Bd7 {[%clk 0:02:52]} 9. O-O {[%clk 0:02:59]}  Qe7 {[%clk 0:02:50]} 10. Bg5 {[%clk 0:02:58]}  h6 {[%clk 0:02:44]} 11. Bh4 {[%clk 0:02:57]}  a6 {[%clk 0:02:42]} 12. Ba4 {[%clk 0:02:56]}  O-O {[%clk 0:02:41]} 13. Nbd2 {[%clk 0:02:55]}  Rad8 {[%clk 0:02:32]} 14. Rfe1 {[%clk 0:02:55]}  Nb8 {[%clk 0:02:20]} 15. Bb3 {[%clk 0:02:52]}  Bg4 {[%clk 0:02:12]} 16. h3 {[%clk 0:02:45]}  Bh5 {[%clk 0:02:12]} 17. g4 {[%clk 0:02:31]}  Bg6 {[%clk 0:02:12]} 18. Nf1 {[%clk 0:02:32]}  Nbd7 {[%clk 0:02:03]} 19. Ng3 {[%clk 0:02:30]}  Rfe8 {[%clk 0:02:03]} 20. Nf5 {[%clk 0:02:26]}  Bxf5 {[%clk 0:02:00]} 21. gxf5 {[%clk 0:02:20]}  Ba7 {[%clk 0:01:59]} 22. Kh2 {[%clk 0:02:18]}  Nc5 {[%clk 0:01:57]} 23. Rg1 {[%clk 0:02:14]}  Rd3 {[%clk 0:01:56]} 24. Qe2 {[%clk 0:01:44]}  Nxb3 {[%clk 0:01:51]} 25. axb3 {[%clk 0:01:43]}  Red8 {[%clk 0:01:51]} 26. Rg2 {[%clk 0:01:38]}  Kh7 {[%clk 0:01:26]} 27. Rag1 {[%clk 0:01:36]}  Qf8 {[%clk 0:01:25]} 28. Nxe5 {[%clk 0:01:27]}  Rd2 {[%clk 0:01:22]} 29. Rxg7+ {[%clk 0:01:24]}  Qxg7 {[%clk 0:01:21]} 30. Rxg7+ {[%clk 0:01:25]}  Kxg7 {[%clk 0:01:22]} 31. Qf3 {[%clk 0:01:13]}  R8d6 {[%clk 0:01:19]} 32. Nc4 {[%clk 0:00:54]}  Nd7 {[%clk 0:01:12]} 33. Nxd2 {[%clk 0:00:44]}  Rxd2 {[%clk 0:01:12]} 34. f6+ {[%clk 0:00:41]}  Kf8 {[%clk 0:01:10]} 35. Qf4 {[%clk 0:00:30]}  Rxb2 {[%clk 0:01:09]} 36. Qxc7 {[%clk 0:00:27]}  Bb8 {[%clk 0:01:09]} 0-1


[Site "https://www.chess.com"]

[Event "Titled Tuesday Blitz March 21 Late 2023"]
[White "Volkov, Maksim"]
[Black "Vasquez Schroeder, Rodrigo"]
[WhiteFideId "54123070"]
[BlackFideId "3400042"]
[WhiteElo "2312"]
[BlackElo "2600"]
[Result "0-1"]
[Round "02"]
[TimeControl "180+2"]
[Date "2023.03.21"]
[WhiteClock "0:00:11"]
[BlackClock "0:00:16"]

1. d4 {[%clk 0:03:00]}  d5 {[%clk 0:02:59]} 2. c4 {[%clk 0:03:00]}  c6 {[%clk 0:02:59]} 3. Nf3 {[%clk 0:03:00]}  Nf6 {[%clk 0:03:00]} 4. g3 {[%clk 0:03:01]}  dxc4 {[%clk 0:02:56]} 5. Bg2 {[%clk 0:02:58]}  g6 {[%clk 0:02:54]} 6. a4 {[%clk 0:02:55]}  Bg7 {[%clk 0:02:52]} 7. Na3 {[%clk 0:02:55]}  a5 {[%clk 0:02:49]} 8. Nxc4 {[%clk 0:02:53]}  Na6 {[%clk 0:02:47]} 9. O-O {[%clk 0:02:52]}  O-O {[%clk 0:02:47]} 10. Re1 {[%clk 0:02:49]}  Be6 {[%clk 0:02:41]} 11. b3 {[%clk 0:02:35]}  Bd5 {[%clk 0:02:38]} 12. Ba3 {[%clk 0:02:24]}  Nb4 {[%clk 0:02:27]} 13. Qc1 {[%clk 0:01:47]}  Ne4 {[%clk 0:02:14]} 14. Nfe5 {[%clk 0:01:43]}  Nd6 {[%clk 0:02:00]} 15. e4 {[%clk 0:01:27]}  Bxc4 {[%clk 0:01:59]} 16. bxc4 {[%clk 0:01:22]}  c5 {[%clk 0:01:48]} 17. Bxb4 {[%clk 0:01:09]}  axb4 {[%clk 0:01:42]} 18. Qc2 {[%clk 0:01:00]}  cxd4 {[%clk 0:01:36]} 19. Nd3 {[%clk 0:01:00]}  Rc8 {[%clk 0:01:31]} 20. c5 {[%clk 0:01:01]}  b6 {[%clk 0:01:28]} 21. c6 {[%clk 0:01:01]}  b3 {[%clk 0:01:19]} 22. Qxb3 {[%clk 0:00:57]}  Rxc6 {[%clk 0:01:16]} 23. Red1 {[%clk 0:00:43]}  Rc3 {[%clk 0:01:15]} 24. Qb4 {[%clk 0:00:43]}  e5 {[%clk 0:01:06]} 25. Rab1 {[%clk 0:00:42]}  Nc4 {[%clk 0:01:06]} 26. Bf1 {[%clk 0:00:38]}  Re8 {[%clk 0:00:58]} 27. Rbc1 {[%clk 0:00:33]}  Bf8 {[%clk 0:00:57]} 28. Qb5 {[%clk 0:00:30]}  Nd6 {[%clk 0:00:49]} 29. Qb2 {[%clk 0:00:29]}  Nxe4 {[%clk 0:00:47]} 30. Re1 {[%clk 0:00:30]}  Rxc1 {[%clk 0:00:47]} 31. Qxc1 {[%clk 0:00:30]}  f5 {[%clk 0:00:44]} 32. f3 {[%clk 0:00:26]}  Nc3 {[%clk 0:00:37]} 33. Nxe5 {[%clk 0:00:26]}  Bc5 {[%clk 0:00:36]} 34. Kg2 {[%clk 0:00:22]}  Kg7 {[%clk 0:00:30]} 35. h4 {[%clk 0:00:19]}  Nd5 {[%clk 0:00:30]} 36. Nc4 {[%clk 0:00:15]}  Ne3+ {[%clk 0:00:29]} 37. Nxe3 {[%clk 0:00:15]}  Rxe3 {[%clk 0:00:29]} 38. Rxe3 {[%clk 0:00:14]}  dxe3 {[%clk 0:00:30]} 39. Qc3+ {[%clk 0:00:15]}  Kh6 {[%clk 0:00:28]} 40. f4 {[%clk 0:00:10]}  Qd5+ {[%clk 0:00:27]} 41. Kh2 {[%clk 0:00:10]}  Qa2+ {[%clk 0:00:19]} 42. Kh3 {[%clk 0:00:08]}  e2 {[%clk 0:00:19]} 43. Bg2 {[%clk 0:00:07]}  Qb1 {[%clk 0:00:15]} 44. Qf6 {[%clk 0:00:07]}  e1=Q {[%clk 0:00:12]} 45. Kh2 {[%clk 0:00:07]}  Qg1+ {[%clk 0:00:12]} 46. Kh3 {[%clk 0:00:07]}  Qxg2+ {[%clk 0:00:12]} 47. Kxg2 {[%clk 0:00:08]}  Qc2+ {[%clk 0:00:12]} 48. Kh3 {[%clk 0:00:08]}  Qd1 {[%clk 0:00:13]} 49. Qg5+ {[%clk 0:00:08]}  Kg7 {[%clk 0:00:13]} 50. Kh2 {[%clk 0:00:08]}  Qe2+ {[%clk 0:00:13]} 51. Kh3 {[%clk 0:00:08]}  Qf1+ {[%clk 0:00:14]} 52. Kh2 {[%clk 0:00:09]}  Bg1+ {[%clk 0:00:15]} 53. Kh1 {[%clk 0:00:10]}  Bf2+ {[%clk 0:00:15]} 54. Kh2 {[%clk 0:00:10]}  Qg1+ {[%clk 0:00:16]} 55. Kh3 {[%clk 0:00:11]}  Qh1# {[%clk 0:00:16]} 0-1


[Site "https://www.chess.com"]

[Event "Titled Tuesday Blitz March 21 Late 2023"]
[White "Panesso Rivera, Henry"]
[Black "Fressinet, Laurent"]
[WhiteFideId "4402707"]
[BlackFideId "608742"]
[WhiteElo "2345"]
[BlackElo "2633"]
[Result "1-0"]
[Round "02"]
[TimeControl "180+2"]
[Date "2023.03.21"]
[WhiteClock "0:00:14"]
[BlackClock "0:01:27"]

1. Nf3 {[%clk 0:03:00]}  g6 {[%clk 0:02:58]} 2. e4 {[%clk 0:02:58]}  Bg7 {[%clk 0:02:58]} 3. d4 {[%clk 0:02:58]}  d6 {[%clk 0:02:59]} 4. Bc4 {[%clk 0:02:58]}  a6 {[%clk 0:02:57]} 5. Bb3 {[%clk 0:02:57]}  e6 {[%clk 0:02:56]} 6. O-O {[%clk 0:02:56]}  Ne7 {[%clk 0:02:54]} 7. Re1 {[%clk 0:02:56]}  b6 {[%clk 0:02:54]} 8. a4 {[%clk 0:02:52]}  Nd7 {[%clk 0:02:52]} 9. a5 {[%clk 0:02:50]}  b5 {[%clk 0:02:51]} 10. c4 {[%clk 0:02:50]}  bxc4 {[%clk 0:02:46]} 11. Bxc4 {[%clk 0:02:50]}  O-O {[%clk 0:02:46]} 12. Nc3 {[%clk 0:02:48]}  Bb7 {[%clk 0:02:46]} 13. h3 {[%clk 0:02:42]}  h6 {[%clk 0:02:30]} 14. Bf4 {[%clk 0:02:41]}  Kh7 {[%clk 0:02:29]} 15. Bh2 {[%clk 0:02:39]}  Rb8 {[%clk 0:02:19]} 16. Qd3 {[%clk 0:02:33]}  Nc6 {[%clk 0:02:16]} 17. Ra4 {[%clk 0:02:26]}  e5 {[%clk 0:02:14]} 18. d5 {[%clk 0:02:17]}  Nc5 {[%clk 0:02:12]} 19. Qc2 {[%clk 0:02:07]}  Nd4 {[%clk 0:02:12]} 20. Qd1 {[%clk 0:01:43]}  Nxa4 {[%clk 0:02:09]} 21. Qxa4 {[%clk 0:01:44]}  Nxf3+ {[%clk 0:02:08]} 22. gxf3 {[%clk 0:01:43]}  Bc8 {[%clk 0:02:08]} 23. b4 {[%clk 0:01:38]}  Bxh3 {[%clk 0:02:03]} 24. Bxa6 {[%clk 0:01:38]}  h5 {[%clk 0:02:03]} 25. Kh1 {[%clk 0:01:37]}  Qf6 {[%clk 0:02:01]} 26. Be2 {[%clk 0:01:36]}  Bh6 {[%clk 0:01:58]} 27. Rg1 {[%clk 0:01:06]}  Bf4 {[%clk 0:01:56]} 28. Bg3 {[%clk 0:01:06]}  Bd2 {[%clk 0:01:49]} 29. Na2 {[%clk 0:01:05]}  h4 {[%clk 0:01:44]} 30. Bh2 {[%clk 0:01:05]}  Bf4 {[%clk 0:01:45]} 31. a6 {[%clk 0:01:01]}  Bxh2 {[%clk 0:01:44]} 32. Kxh2 {[%clk 0:01:00]}  Bc8 {[%clk 0:01:44]} 33. b5 {[%clk 0:00:52]}  Qf4+ {[%clk 0:01:44]} 34. Kh1 {[%clk 0:00:51]}  Qd2 {[%clk 0:01:44]} 35. Nc1 {[%clk 0:00:42]}  Bd7 {[%clk 0:01:40]} 36. Rd1 {[%clk 0:00:36]}  Qb2 {[%clk 0:01:32]} 37. a7 {[%clk 0:00:30]}  Ra8 {[%clk 0:01:31]} 38. Kg1 {[%clk 0:00:14]}  Qc2 {[%clk 0:01:27]} 39. Qxc2 {[%clk 0:00:14]} 1-0


[Site "https://www.chess.com"]

[Event "Titled Tuesday Blitz March 21 Late 2023"]
[White "Ibarra Jerez, Jose Carlos"]
[Black "Melikyan, Gnel"]
[WhiteFideId "2226332"]
[BlackFideId "54109990"]
[WhiteElo "2638"]
[BlackElo "2138"]
[Result "1/2-1/2"]
[Round "02"]
[TimeControl "180+2"]
[Date "2023.03.21"]
[WhiteClock "0:00:03"]
[BlackClock "0:00:07"]

1. e4 {[%clk 0:03:00]}  c6 {[%clk 0:02:52]} 2. Nf3 {[%clk 0:02:59]}  d5 {[%clk 0:02:52]} 3. d3 {[%clk 0:02:58]}  dxe4 {[%clk 0:02:51]} 4. dxe4 {[%clk 0:02:58]}  Qxd1+ {[%clk 0:02:51]} 5. Kxd1 {[%clk 0:02:59]}  Nf6 {[%clk 0:02:50]} 6. Nbd2 {[%clk 0:02:57]}  Nbd7 {[%clk 0:02:42]} 7. Bc4 {[%clk 0:02:51]}  Nc5 {[%clk 0:02:32]} 8. Re1 {[%clk 0:02:49]}  Be6 {[%clk 0:02:30]} 9. Bxe6 {[%clk 0:02:37]}  Nxe6 {[%clk 0:02:30]} 10. a4 {[%clk 0:02:35]}  g6 {[%clk 0:02:17]} 11. c3 {[%clk 0:02:30]}  Bg7 {[%clk 0:02:16]} 12. Kc2 {[%clk 0:02:29]}  O-O {[%clk 0:02:11]} 13. Nc4 {[%clk 0:02:27]}  Rfd8 {[%clk 0:02:03]} 14. Nfe5 {[%clk 0:02:19]}  Nd7 {[%clk 0:01:57]} 15. Nxd7 {[%clk 0:02:18]}  Rxd7 {[%clk 0:01:57]} 16. Be3 {[%clk 0:02:18]}  c5 {[%clk 0:01:16]} 17. f4 {[%clk 0:02:13]}  Rc8 {[%clk 0:01:05]} 18. f5 {[%clk 0:02:05]}  gxf5 {[%clk 0:01:04]} 19. exf5 {[%clk 0:02:06]}  Nd4+ {[%clk 0:01:05]} 20. cxd4 {[%clk 0:01:39]}  cxd4 {[%clk 0:01:04]} 21. Kb3 {[%clk 0:01:33]}  dxe3 {[%clk 0:01:01]} 22. Rxe3 {[%clk 0:01:34]}  Rd4 {[%clk 0:00:54]} 23. Rc1 {[%clk 0:01:28]}  a6 {[%clk 0:00:41]} 24. a5 {[%clk 0:01:24]}  Bf6 {[%clk 0:00:39]} 25. Rg3+ {[%clk 0:01:22]}  Kf8 {[%clk 0:00:33]} 26. Rc2 {[%clk 0:01:15]}  Rd5 {[%clk 0:00:27]} 27. Rf3 {[%clk 0:01:06]}  Rb5+ {[%clk 0:00:27]} 28. Ka4 {[%clk 0:01:05]}  Bxb2 {[%clk 0:00:20]} 29. g4 {[%clk 0:00:51]}  Bf6 {[%clk 0:00:20]} 30. Rb3 {[%clk 0:00:45]}  Rcc5 {[%clk 0:00:20]} 31. Rb4 {[%clk 0:00:36]}  Rxa5+ {[%clk 0:00:19]} 32. Nxa5 {[%clk 0:00:34]}  Rxc2 {[%clk 0:00:19]} 33. Nxb7 {[%clk 0:00:23]}  Ra2+ {[%clk 0:00:18]} 34. Kb3 {[%clk 0:00:23]}  Rxh2 {[%clk 0:00:17]} 35. Nc5 {[%clk 0:00:24]}  Rb2+ {[%clk 0:00:17]} 36. Kc4 {[%clk 0:00:24]}  Rc2+ {[%clk 0:00:14]} 37. Kd5 {[%clk 0:00:23]}  a5 {[%clk 0:00:14]} 38. Ra4 {[%clk 0:00:22]}  Rg2 {[%clk 0:00:13]} 39. Rf4 {[%clk 0:00:14]}  Kg7 {[%clk 0:00:13]} 40. Kc4 {[%clk 0:00:13]}  Be5 {[%clk 0:00:12]} 41. Re4 {[%clk 0:00:13]}  Bd6 {[%clk 0:00:12]} 42. Na4 {[%clk 0:00:11]}  Ra2 {[%clk 0:00:11]} 43. Kb5 {[%clk 0:00:10]}  Bb4 {[%clk 0:00:10]} 44. Nb6 {[%clk 0:00:09]}  Rb2 {[%clk 0:00:09]} 45. Ka4 {[%clk 0:00:08]}  Kf6 {[%clk 0:00:07]} 46. Nd5+ {[%clk 0:00:08]}  Kg5 {[%clk 0:00:08]} 47. Nxe7 {[%clk 0:00:06]}  Bc3 {[%clk 0:00:08]} 48. Nd5 {[%clk 0:00:05]}  Bd2 {[%clk 0:00:09]} 49. Rd4 {[%clk 0:00:05]}  f6 {[%clk 0:00:07]} 50. Re4 {[%clk 0:00:05]}  h6 {[%clk 0:00:06]} 51. Re8 {[%clk 0:00:05]}  Bb4 {[%clk 0:00:05]} 52. Rg8+ {[%clk 0:00:04]}  Kh4 {[%clk 0:00:06]} 53. Nxf6 {[%clk 0:00:05]}  Ra2+ {[%clk 0:00:05]} 54. Kb3 {[%clk 0:00:05]}  Ra3+ {[%clk 0:00:06]} 55. Kc4 {[%clk 0:00:05]}  Rg3 {[%clk 0:00:06]} 56. Rg6 {[%clk 0:00:05]}  h5 {[%clk 0:00:05]} 57. Rh6 {[%clk 0:00:04]}  Kg5 {[%clk 0:00:04]} 58. Nxh5 {[%clk 0:00:04]}  Kxh6 {[%clk 0:00:04]} 59. Nxg3 {[%clk 0:00:04]}  Kg5 {[%clk 0:00:05]} 60. Ne4+ {[%clk 0:00:04]}  Kxg4 {[%clk 0:00:06]} 61. f6 {[%clk 0:00:04]}  Kf5 {[%clk 0:00:06]} 62. Nc5 {[%clk 0:00:02]}  Kxf6 {[%clk 0:00:07]} 63. Nb3 {[%clk 0:00:02]}  Ke5 {[%clk 0:00:07]} 64. Nxa5 {[%clk 0:00:03]} 1/2-1/2


[Site "https://www.chess.com"]

[Event "Titled Tuesday Blitz March 21 Late 2023"]
[White "Chigaev, Maksim"]
[Black "Mihajlov, Sebastian"]
[WhiteFideId "4108116"]
[BlackFideId "1512110"]
[WhiteElo "2547"]
[BlackElo "2464"]
[Result "1/2-1/2"]
[Round "02"]
[TimeControl "180+2"]
[Date "2023.03.21"]
[WhiteClock "0:00:03"]
[BlackClock "0:00:20"]

1. d4 {[%clk 0:03:00]}  Nf6 {[%clk 0:02:57]} 2. c4 {[%clk 0:02:59]}  b6 {[%clk 0:02:58]} 3. Nf3 {[%clk 0:02:42]}  Bb7 {[%clk 0:02:56]} 4. Nbd2 {[%clk 0:02:41]}  d6 {[%clk 0:02:49]} 5. g3 {[%clk 0:02:40]}  g6 {[%clk 0:02:49]} 6. Bg2 {[%clk 0:02:40]}  Bg7 {[%clk 0:02:50]} 7. O-O {[%clk 0:02:41]}  O-O {[%clk 0:02:51]} 8. b3 {[%clk 0:02:41]}  Nbd7 {[%clk 0:02:51]} 9. Bb2 {[%clk 0:02:42]}  e6 {[%clk 0:02:48]} 10. Qc2 {[%clk 0:02:39]}  a6 {[%clk 0:02:48]} 11. e4 {[%clk 0:02:38]}  h6 {[%clk 0:02:47]} 12. Rfe1 {[%clk 0:02:37]}  Qe7 {[%clk 0:02:42]} 13. e5 {[%clk 0:02:24]}  dxe5 {[%clk 0:02:41]} 14. dxe5 {[%clk 0:02:25]}  Nh7 {[%clk 0:02:39]} 15. h4 {[%clk 0:02:21]}  Rfd8 {[%clk 0:02:38]} 16. Ne4 {[%clk 0:02:19]}  Bxe4 {[%clk 0:02:25]} 17. Rxe4 {[%clk 0:02:18]}  Nc5 {[%clk 0:02:26]} 18. Re3 {[%clk 0:02:18]}  Qd7 {[%clk 0:02:22]} 19. Nd4 {[%clk 0:02:16]}  Rac8 {[%clk 0:02:14]} 20. Rd1 {[%clk 0:02:03]}  a5 {[%clk 0:02:07]} 21. Ree1 {[%clk 0:01:58]}  Qe8 {[%clk 0:02:04]} 22. Nc6 {[%clk 0:01:55]}  Rxd1 {[%clk 0:02:03]} 23. Rxd1 {[%clk 0:01:55]}  Nf8 {[%clk 0:02:00]} 24. a3 {[%clk 0:01:55]}  Ncd7 {[%clk 0:01:38]} 25. Qd3 {[%clk 0:01:36]}  Nc5 {[%clk 0:01:35]} 26. Qe3 {[%clk 0:01:35]}  Nfd7 {[%clk 0:01:25]} 27. b4 {[%clk 0:01:22]}  axb4 {[%clk 0:01:25]} 28. axb4 {[%clk 0:01:23]}  Na4 {[%clk 0:01:26]} 29. Ba3 {[%clk 0:01:12]}  Nb8 {[%clk 0:01:01]} 30. b5 {[%clk 0:01:04]}  Bf8 {[%clk 0:01:01]} 31. Nxb8 {[%clk 0:00:52]}  Rxb8 {[%clk 0:00:54]} 32. Bc6 {[%clk 0:00:53]}  Qc8 {[%clk 0:00:52]} 33. Bxf8 {[%clk 0:00:43]}  Qxf8 {[%clk 0:00:49]} 34. Rd7 {[%clk 0:00:43]}  Rd8 {[%clk 0:00:30]} 35. Rxc7 {[%clk 0:00:40]}  Nc5 {[%clk 0:00:25]} 36. Ra7 {[%clk 0:00:39]}  Kg7 {[%clk 0:00:22]} 37. Qf4 {[%clk 0:00:33]}  Kg8 {[%clk 0:00:17]} 38. Qf6 {[%clk 0:00:29]}  h5 {[%clk 0:00:16]} 39. Kg2 {[%clk 0:00:27]}  Rc8 {[%clk 0:00:13]} 40. Kh2 {[%clk 0:00:20]}  Qg7 {[%clk 0:00:13]} 41. Qe7 {[%clk 0:00:10]}  Qf8 {[%clk 0:00:12]} 42. Qd6 {[%clk 0:00:07]}  Rd8 {[%clk 0:00:12]} 43. Qxf8+ {[%clk 0:00:05]}  Kxf8 {[%clk 0:00:13]} 44. Ra8 {[%clk 0:00:03]}  Rxa8 {[%clk 0:00:13]} 45. Bxa8 {[%clk 0:00:04]}  Ke7 {[%clk 0:00:13]} 46. f4 {[%clk 0:00:04]}  Nd3 {[%clk 0:00:13]} 47. Bf3 {[%clk 0:00:02]}  Kd7 {[%clk 0:00:12]} 48. Kg2 {[%clk 0:00:02]}  Nc5 {[%clk 0:00:13]} 49. Kf2 {[%clk 0:00:02]}  Kc7 {[%clk 0:00:14]} 50. Ke3 {[%clk 0:00:02]}  Kd7 {[%clk 0:00:15]} 51. Kd4 {[%clk 0:00:03]}  Ke7 {[%clk 0:00:14]} 52. Bc6 {[%clk 0:00:04]}  Kd8 {[%clk 0:00:15]} 53. Bf3 {[%clk 0:00:03]}  Ke7 {[%clk 0:00:15]} 54. Bd1 {[%clk 0:00:04]}  Kd8 {[%clk 0:00:15]} 55. g4 {[%clk 0:00:05]}  hxg4 {[%clk 0:00:15]} 56. Bxg4 {[%clk 0:00:06]}  Ke7 {[%clk 0:00:16]} 57. h5 {[%clk 0:00:06]}  gxh5 {[%clk 0:00:17]} 58. Bxh5 {[%clk 0:00:07]}  Kf8 {[%clk 0:00:17]} 59. Bg4 {[%clk 0:00:06]}  Ke7 {[%clk 0:00:17]} 60. f5 {[%clk 0:00:06]}  Kd7 {[%clk 0:00:16]} 61. f6 {[%clk 0:00:07]}  Ke8 {[%clk 0:00:15]} 62. Bd1 {[%clk 0:00:04]}  Kd7 {[%clk 0:00:16]} 63. Bf3 {[%clk 0:00:05]}  Ke8 {[%clk 0:00:16]} 64. Ke3 {[%clk 0:00:05]}  Kf8 {[%clk 0:00:16]} 65. Be4 {[%clk 0:00:06]}  Kg8 {[%clk 0:00:16]} 66. Bc2 {[%clk 0:00:06]}  Kf8 {[%clk 0:00:16]} 67. Kf4 {[%clk 0:00:06]}  Kg8 {[%clk 0:00:16]} 68. Kg5 {[%clk 0:00:06]}  Kf8 {[%clk 0:00:16]} 69. Kf4 {[%clk 0:00:04]}  Ke8 {[%clk 0:00:17]} 70. Be4 {[%clk 0:00:05]}  Kd8 {[%clk 0:00:16]} 71. Bc6 {[%clk 0:00:06]}  Nd3+ {[%clk 0:00:15]} 72. Ke4 {[%clk 0:00:06]}  Nc5+ {[%clk 0:00:16]} 73. Ke3 {[%clk 0:00:06]}  Nb3 {[%clk 0:00:16]} 74. Kd3 {[%clk 0:00:03]}  Nc5+ {[%clk 0:00:16]} 75. Kc3 {[%clk 0:00:04]}  Na4+ {[%clk 0:00:13]} 76. Kd4 {[%clk 0:00:04]}  Nc5 {[%clk 0:00:14]} 77. Ke3 {[%clk 0:00:03]}  Nb3 {[%clk 0:00:14]} 78. Be4 {[%clk 0:00:02]}  Nc5 {[%clk 0:00:15]} 79. Bc2 {[%clk 0:00:02]}  Ke8 {[%clk 0:00:15]} 80. Bd1 {[%clk 0:00:01]}  Kf8 {[%clk 0:00:16]} 81. Bf3 {[%clk 0:00:02]}  Nd7 {[%clk 0:00:15]} 82. Kd4 {[%clk 0:00:02]}  Nc5 {[%clk 0:00:16]} 83. Bc6 {[%clk 0:00:01]}  Nb3+ {[%clk 0:00:15]} 84. Kc3 {[%clk 0:00:02]}  Nc5 {[%clk 0:00:16]} 85. Kd4 {[%clk 0:00:02]}  Nb3+ {[%clk 0:00:17]} 86. Ke3 {[%clk 0:00:03]}  Nc5 {[%clk 0:00:18]} 87. Bf3 {[%clk 0:00:03]}  Nb3 {[%clk 0:00:18]} 88. Be4 {[%clk 0:00:03]}  Nc5 {[%clk 0:00:19]} 89. Kd4 {[%clk 0:00:03]}  Ke8 {[%clk 0:00:18]} 90. Bc2 {[%clk 0:00:03]}  Kd7 {[%clk 0:00:18]} 91. Bd1 {[%clk 0:00:04]}  Ke8 {[%clk 0:00:18]} 92. Kc3 {[%clk 0:00:04]}  Ne4+ {[%clk 0:00:18]} 93. Kd3 {[%clk 0:00:03]}  Nc5+ {[%clk 0:00:19]} 94. Ke3 {[%clk 0:00:04]}  Kd7 {[%clk 0:00:18]} 95. Bc2 {[%clk 0:00:04]}  Ke8 {[%clk 0:00:18]} 96. Kf4 {[%clk 0:00:05]}  Kf8 {[%clk 0:00:18]} 97. Kg5 {[%clk 0:00:04]}  Nd7 {[%clk 0:00:19]} 98. Kf4 {[%clk 0:00:03]}  Nc5 {[%clk 0:00:20]} 99. Ke3 {[%clk 0:00:03]}  Ke8 {[%clk 0:00:20]} 1/2-1/2


[Site "https://www.chess.com"]

[Event "Titled Tuesday Blitz March 21 Late 2023"]
[White "Movahed, Sina"]
[Black "Krallis, Christos"]
[WhiteFideId "42520835"]
[BlackFideId "4298896"]
[WhiteElo "2225"]
[BlackElo "2243"]
[Result "1-0"]
[Round "02"]
[TimeControl "180+2"]
[Date "2023.03.21"]
[WhiteClock "0:00:29"]
[BlackClock "0:00:10"]

1. e4 {[%clk 0:03:00]}  e5 {[%clk 0:02:52]} 2. Nf3 {[%clk 0:03:00]}  Nc6 {[%clk 0:02:50]} 3. Bb5 {[%clk 0:03:00]}  a6 {[%clk 0:02:49]} 4. Ba4 {[%clk 0:03:01]}  Nf6 {[%clk 0:02:47]} 5. O-O {[%clk 0:03:01]}  b5 {[%clk 0:02:44]} 6. Bb3 {[%clk 0:03:00]}  Be7 {[%clk 0:02:43]} 7. c3 {[%clk 0:02:55]}  O-O {[%clk 0:02:38]} 8. d4 {[%clk 0:02:55]}  d6 {[%clk 0:02:34]} 9. h3 {[%clk 0:02:51]}  Bb7 {[%clk 0:02:31]} 10. Re1 {[%clk 0:02:50]}  Nd7 {[%clk 0:01:58]} 11. a4 {[%clk 0:02:42]}  exd4 {[%clk 0:01:54]} 12. cxd4 {[%clk 0:02:43]}  Bf6 {[%clk 0:01:54]} 13. Nc3 {[%clk 0:02:37]}  bxa4 {[%clk 0:01:26]} 14. Rxa4 {[%clk 0:02:24]}  Nb6 {[%clk 0:01:25]} 15. Ra3 {[%clk 0:02:24]}  Na7 {[%clk 0:01:13]} 16. Ra5 {[%clk 0:02:19]}  Nc6 {[%clk 0:01:11]} 17. Rf5 {[%clk 0:02:12]}  g6 {[%clk 0:00:59]} 18. Rf4 {[%clk 0:01:27]}  Bg7 {[%clk 0:00:58]} 19. Ng5 {[%clk 0:01:09]}  d5 {[%clk 0:00:20]} 20. Nxd5 {[%clk 0:00:41]}  Na5 {[%clk 0:00:20]} 21. Nxb6 {[%clk 0:00:33]}  Nxb3 {[%clk 0:00:20]} 22. Qxb3 {[%clk 0:00:31]}  cxb6 {[%clk 0:00:15]} 23. Rxf7 {[%clk 0:00:29]}  Rxf7 {[%clk 0:00:11]} 24. Qxf7+ {[%clk 0:00:30]}  Kh8 {[%clk 0:00:10]} 25. Qxb7 {[%clk 0:00:29]} 1-0


[Site "https://www.chess.com"]

[Event "Titled Tuesday Blitz March 21 Late 2023"]
[White "benny_aizenberg"]
[Black "Yeletsky, Ivan"]
[BlackFideId "24180327"]
[WhiteElo "2607"]
[BlackElo "2414"]
[Result "1-0"]
[Round "02"]
[TimeControl "180+2"]
[Date "2023.03.21"]
[WhiteClock "0:01:03"]
[BlackClock "0:00:39"]

1. e4 {[%clk 0:03:00]}  g6 {[%clk 0:02:59]} 2. h4 {[%clk 0:02:59]}  Nf6 {[%clk 0:02:58]} 3. e5 {[%clk 0:02:58]}  Nh5 {[%clk 0:02:57]} 4. g4 {[%clk 0:02:58]}  Ng7 {[%clk 0:02:55]} 5. h5 {[%clk 0:02:58]}  gxh5 {[%clk 0:02:55]} 6. gxh5 {[%clk 0:02:58]}  d6 {[%clk 0:02:55]} 7. h6 {[%clk 0:02:53]}  Ne6 {[%clk 0:02:54]} 8. exd6 {[%clk 0:02:50]}  exd6 {[%clk 0:02:49]} 9. d4 {[%clk 0:02:48]}  d5 {[%clk 0:02:50]} 10. Nc3 {[%clk 0:02:47]}  c6 {[%clk 0:02:47]} 11. Nf3 {[%clk 0:02:47]}  Bd6 {[%clk 0:02:47]} 12. Bh3 {[%clk 0:02:46]}  Na6 {[%clk 0:02:45]} 13. Be3 {[%clk 0:02:41]}  Nf4 {[%clk 0:02:32]} 14. Bxc8 {[%clk 0:02:34]}  Qxc8 {[%clk 0:02:33]} 15. Bxf4 {[%clk 0:02:29]}  Bxf4 {[%clk 0:02:34]} 16. Qe2+ {[%clk 0:02:29]}  Kd8 {[%clk 0:02:29]} 17. Kf1 {[%clk 0:02:23]}  Qf5 {[%clk 0:02:24]} 18. Re1 {[%clk 0:02:21]}  Nc7 {[%clk 0:02:22]} 19. Qe7+ {[%clk 0:02:14]}  Kc8 {[%clk 0:02:21]} 20. Ne5 {[%clk 0:02:12]}  Bxe5 {[%clk 0:02:09]} 21. Rxe5 {[%clk 0:02:09]}  Qf4 {[%clk 0:02:09]} 22. Ne2 {[%clk 0:02:06]}  Qf3 {[%clk 0:02:07]} 23. Rh4 {[%clk 0:02:04]}  Rg8 {[%clk 0:01:51]} 24. Re3 {[%clk 0:01:53]}  Qg2+ {[%clk 0:01:45]} 25. Ke1 {[%clk 0:01:53]}  b6 {[%clk 0:01:45]} 26. Qxf7 {[%clk 0:01:50]}  Kb7 {[%clk 0:01:45]} 27. Re7 {[%clk 0:01:48]}  Rgc8 {[%clk 0:01:25]} 28. Qxh7 {[%clk 0:01:47]}  Qg5 {[%clk 0:01:13]} 29. Rf4 {[%clk 0:01:46]}  Re8 {[%clk 0:01:08]} 30. Rxc7+ {[%clk 0:01:40]}  Ka6 {[%clk 0:01:08]} 31. Qd3+ {[%clk 0:01:38]}  Ka5 {[%clk 0:01:05]} 32. c3 {[%clk 0:01:12]}  b5 {[%clk 0:00:46]} 33. Rxc6 {[%clk 0:01:06]}  a6 {[%clk 0:00:39]} 34. b4+ {[%clk 0:01:03]} 1-0


[Site "https://www.chess.com"]